bitfinex/quotes_SOLUSD_20241121
["timestamp","ask_amount","ask_price","bid_price","bid_amount"]
[1732209017846,19.23159545,255.04,254.98,3.9218]
[1732209018036,19.23159545,255.06,254.98,13.7264]
[1732209018337,23.776884,255.05,254.98,13.7264]
[1732209018644,23.776884,255.03,254.98,13.7264]
[1732209018853,19.23159545,255.02,254.98,13.7264]
[1732209019035,23.776884,255.01,254.96,3.922]
[1732209019956,23.776884,255.01,254.95,9.8058]
[1732209020263,23.776884,255.01,254.93,3.9225]
[1732209020264,23.776884,254.99,254.91,3.9228]
[1732209020424,23.776884,254.99,254.91,13.7301]
[1732209020935,23.776884,254.97,254.9,19.23159545]
[1732209021446,23.776884,254.97,254.9,32.96229545]
[1732209021643,19.23159545,254.98,254.9,19.23159545]
[1732209021847,3.9216,255.0,254.86,19.23159545]
[1732209021848,19.23159545,254.96,254.86,19.23159545]
[1732209022050,19.23159545,254.91,254.82,19.23159545]
[1732209022248,23.776884,254.95,254.78,19.23159545]
[1732209022249,23.776884,254.86,254.78,19.23159545]
[1732209022553,27.700584,254.86,254.78,19.23159545]
[1732209022757,23.776884,254.86,254.78,19.23159545]
[1732209022957,23.776884,254.88,254.8,19.23159545]
[1732209023252,23.776884,254.92,254.84,19.23159545]
[1732209023434,32.0954,255.02,254.78,33.3618]
[1732209023435,19.23159545,254.97,254.88,19.23159545]
[1732209023638,19.23159545,254.97,254.78,33.3618]
[1732209023639,19.23159545,254.93,254.84,19.23159545]
[1732209023840,19.23159545,254.91,254.82,19.23159545]
[1732209024059,19.23159545,254.87,254.78,29.04389545]
[1732209024235,19.23159545,254.89,254.8,19.23159545]
[1732209024561,19.23159545,254.84,254.76,19.23159545]
[1732209024864,23.776884,254.83,254.76,19.23159545]
[1732209025435,23.776884,254.79,254.7,19.23159545]
[1732209025646,23.776884,254.77,254.68,19.23159545]
[1732209026367,23.776884,254.77,254.7,19.23159545]
[1732209026658,23.776884,254.79,254.7,19.23159545]
[1732209027161,23.776884,254.77,254.68,19.23159545]
[1732209027755,23.776884,254.75,254.66,29.04829545]
[1732209027943,19.23159545,254.74,254.64,19.23159545]
[1732209028137,19.23159545,254.72,254.64,19.23159545]
[1732209028335,23.776884,254.73,254.64,19.23159545]
[1732209028532,23.776884,254.73,254.66,19.23159545]
[1732209028760,27.702284,254.75,254.66,19.23159545]
[1732209029055,0.5,254.66,254.5,19.23159545]
[1732209029243,23.776884,254.59,254.52,19.23159545]
[1732209029446,23.776884,254.59,254.54,19.23159545]
[1732209029757,23.776884,254.67,254.58,19.23159545]
[1732209029962,19.23159545,254.65,254.56,19.23159545]
[1732209030139,19.23159545,254.61,254.42,46.6777]
[1732209030338,3.9254,254.75,254.47,0.5]
[1732209030565,3.9254,254.75,254.67,19.23159545]
[1732209030755,19.23159545,254.76,254.67,19.23159545]
[1732209030941,19.23159545,254.7,254.61,19.23159545]
[1732209031261,19.23159545,254.7,254.59,19.23159545]
[1732209031445,19.23159545,254.68,254.59,19.23159545]
[1732209031861,19.23159545,254.66,254.57,19.23159545]
[1732209032065,23.776884,254.63,254.55,19.23159545]
[1732209032745,23.776884,254.63,254.53,13.7506]
[1732209032746,23.776884,254.65,254.57,19.23159545]
[1732209033138,27.703884,254.65,254.57,19.23159545]
[1732209033752,3.24747502,254.77,254.64,19.23159545]
[1732209033956,19.23159545,254.74,254.64,19.23159545]
[1732209034148,19.23159545,254.68,254.58,19.23159545]
[1732209034752,3.9266,254.67,254.58,19.23159545]
[1732209034957,19.23159545,254.64,254.54,29.05319545]
[1732209035154,19.23159545,254.62,254.52,19.23159545]
[1732209035348,19.23159545,254.6,254.5,3.9291]
[1732209035550,23.776884,254.59,254.5,23.16069545]
[1732209036353,3.9258,254.72,254.58,19.23159545]
[1732209036550,19.23159545,254.7,254.61,19.23159545]
[1732209036868,19.23159545,254.68,254.59,19.23159545]
[1732209037040,19.23159545,254.68,254.57,19.23159545]
[1732209037968,19.23159545,254.63,254.53,23.16029545]
[1732209038464,19.23159545,254.54,254.39,9.8273]
[1732209038643,23.776884,254.53,254.43,19.23159545]
[1732209038840,23.776884,254.53,254.44,19.23159545]
[1732209039058,20.23159545,254.67,254.39,9.8273]
[1732209039059,23.776884,254.67,254.52,19.23159545]
[1732209039346,23.776884,254.59,254.5,19.23159545]
[1732209039547,23.776884,254.59,254.48,19.23159545]
[1732209039867,19.23159545,254.58,254.49,3.9294]
[1732209040580,27.704884,254.59,254.49,3.9294]
[1732209040581,19.23159545,254.56,254.49,3.9294]
[1732209040746,27.704884,254.59,254.44,19.23159545]
[1732209040747,19.23159545,254.54,254.44,19.23159545]
[1732209041251,19.23159545,254.56,254.47,19.23159545]
[1732209041451,19.23159545,254.56,254.45,19.23159545]
[1732209041648,23.776884,254.55,254.46,3.9298]
[1732209042646,19.23159545,254.54,254.35,45.332]
[1732209042847,23.776884,254.53,254.43,19.23159545]
[1732209043152,23.776884,254.53,254.38,9.8276]
[1732209043153,19.23159545,254.54,254.44,19.23159545]
[1732209044050,19.23159545,254.54,254.45,13.7551]
[1732209044457,19.23159545,254.56,254.46,20.0]
[1732209044752,19.23159545,254.56,254.47,19.23159545]
[1732209044966,19.23159545,254.54,254.45,9.8251]
[1732209045352,19.23159545,254.54,254.32,13.7621]
[1732209045353,23.776884,254.46,254.32,13.7621]
[1732209045572,19.23159545,254.41,254.32,13.7621]
[1732209045898,19.23159545,254.46,254.36,19.23159545]
[1732209046173,19.23159545,254.44,254.32,32.99369545]
[1732209046559,19.23159545,254.42,254.32,32.99369545]
[1732209046746,19.23159545,254.46,254.34,19.23159545]
[1732209047145,19.23159545,254.46,254.36,19.23159545]
[1732209047568,19.23159545,254.46,254.32,13.7621]
[1732209047569,19.23159545,254.46,254.34,19.23159545]
[1732209047765,19.23159545,254.46,254.35,20.0]
[1732209048179,19.23159545,254.44,254.35,20.0]
[1732209048686,19.23159545,254.42,254.32,32.99369545]
[1732209049350,0.5,254.51,254.32,13.7621]
[1732209049555,19.23159545,254.38,254.32,9.8301]
[1732209049874,19.23159545,254.38,254.28,19.23159545]
[1732209049875,19.23159545,254.36,254.29,3.9324]
[1732209051067,19.23159545,254.36,254.22,32.6361]
[1732209051068,19.23159545,254.3,254.21,19.23159545]
[1732209051278,23.776884,254.35,254.17,13.7702]
[1732209051459,19.23159545,254.23,254.17,13.7702]
[1732209051657,19.23159545,254.25,254.17,13.7702]
[1732209051855,24.276884,254.35,254.2,19.23159545]
[1732209051856,19.23159545,254.29,254.2,19.23159545]
[1732209052171,19.23159545,254.27,254.18,19.23159545]
[1732209052553,19.23159545,254.25,254.17,13.7702]
[1732209052877,19.23159545,254.23,254.17,9.8359]
[1732209053678,19.23159545,254.25,254.17,9.8359]
[1732209053856,19.23159545,254.27,254.17,29.06749545]
[1732209054062,19.23159545,254.27,254.19,19.23159545]
[1732209054664,19.23159545,254.29,254.19,19.23159545]
[1732209054887,19.23159545,254.31,254.21,19.23159545]
[1732209055655,23.16389545,254.31,254.22,13.7676]
[1732209056058,19.23159545,254.27,254.17,19.23159545]
[1732209056257,3.9323,254.31,254.19,19.23159545]
[1732209056473,19.23159545,254.29,254.19,19.23159545]
[1732209057168,19.23159545,254.31,254.21,19.23159545]
[1732209057372,23.16349545,254.33,254.23,19.23159545]
[1732209057575,23.16349545,254.33,254.24,3.9332]
[1732209057877,23.16349545,254.33,254.24,13.7664]
[1732209058387,19.23159545,254.33,254.24,13.7664]
[1732209058561,19.23159545,254.35,254.25,19.23159545]
[1732209058773,19.23159545,254.37,254.27,19.23159545]
[1732209059074,19.23159545,254.39,254.29,19.23159545]
[1732209059466,3.9292,254.5,254.31,19.23159545]
[1732209059668,19.23159545,254.42,254.32,20.0]
[1732209059872,19.23159545,254.33,254.17,12.0152]
[1732209060064,19.23159545,254.32,254.22,19.23159545]
[1732209060264,19.23159545,254.32,254.24,19.23159545]
[1732209060467,19.23159545,254.34,254.24,19.23159545]
[1732209061072,19.23159545,254.41,254.22,32.99919545]
[1732209061073,19.23159545,254.3,254.22,32.99919545]
[1732209061270,19.23159545,254.32,254.22,32.99919545]
[1732209061663,19.23159545,254.3,254.22,13.7676]
[1732209061868,19.23159545,254.28,254.22,13.7676]
[1732209062066,19.23159545,254.23,254.16,9.8361]
[1732209062369,19.23159545,254.19,254.11,13.7734]
[1732209062558,19.23159545,254.17,254.11,13.7734]
[1732209063375,3.9337,254.21,254.11,13.7734]
[1732209063376,19.23159545,254.19,254.11,13.7734]
[1732209064173,19.23159545,254.23,254.13,19.23159545]
[1732209065287,19.23159545,254.19,254.11,9.8382]
[1732209065677,19.23159545,254.15,254.07,3.9358]
[1732209066185,19.23159545,254.15,254.07,13.7756]
[1732209066781,19.23159545,254.13,254.01,9.8417]
[1732209067085,19.23159545,254.09,254.01,13.7784]
[1732209067284,19.23159545,254.13,254.03,19.23159545]
[1732209067587,19.23159545,254.13,254.05,19.23159545]
[1732209067801,19.23159545,254.13,254.01,13.7784]
[1732209067802,19.23159545,254.17,254.08,19.23159545]
[1732209068080,19.23159545,254.2,254.1,19.23159545]
[1732209068290,19.23159545,254.22,254.12,19.23159545]
[1732209069188,19.23159545,254.22,254.13,33.7723]
[1732209069489,19.23159545,254.24,254.14,19.23159545]
[1732209069685,19.23159545,254.22,254.15,20.0]
[1732209070285,18.40738931,253.78,253.64,2.04467453]
[1732209070490,19.23159545,253.65,253.5,26.4128]
[1732209070677,19.23159545,253.55,253.5,12.6064]
[1732209070877,19.23159545,253.52,253.42,29.09649545]
[1732209071184,132.55527227,253.51,253.42,0.12925208]
[1732209071383,56.34707168,253.5,253.4,13.0937]
[1732209071589,18.55773811,253.49,253.4,13.0937]
[1732209071779,19.23159545,253.47,253.4,13.0937]
[1732209071982,74.23095247,253.46,253.4,13.0937]
[1732209072192,63.62653068,253.45,253.4,7.19757294]
[1732209072384,68.92874158,253.44,253.41,19.23159545]
[1732209072583,18.55773811,253.43,253.41,23.17769545]
[1732209072897,100.19159611,253.42,253.4,38.72986479]
[1732209073086,68.72629413,253.41,253.4,42.67596479]
[1732209073280,58.17956271,253.41,253.22,48.978126]
[1732209073484,11.93074458,253.36,253.22,48.978126]
[1732209073689,2.63668285,253.35,253.23,0.59188295]
[1732209073889,2.63668285,253.34,253.24,31.53229185]
[1732209074194,35.8745337,253.47,253.24,31.53229185]
[1732209074195,36.3745337,253.47,253.24,31.53229185]
[1732209074411,108.68869089,253.45,253.44,31.53229185]
[1732209074585,108.18869089,253.45,253.44,31.53229185]
[1732209075297,0.5,253.42,253.41,31.53229185]
[1732209075684,1.0,253.42,253.41,31.53229185]
[1732209076084,0.5,253.4,253.37,31.53229185]
[1732209076384,1.0,253.29,253.25,3.9486]
[1732209076694,1.0,253.27,253.22,13.8215]
[1732209076900,0.5,253.23,253.22,9.8725]
[1732209077084,1.0,253.23,253.22,9.8725]
[1732209077403,0.5,253.18,253.05,3.9517]
[1732209077697,1.0,253.18,253.17,31.53229185]
[1732209078291,0.5,253.32,253.17,31.53229185]
[1732209078292,0.5,253.22,253.17,31.53229185]
[1732209078488,0.5,253.22,253.11,31.53229185]
[1732209078803,0.5,253.31,253.21,31.53229185]
[1732209079009,0.5,253.31,253.29,31.53229185]
[1732209079507,0.5,253.31,253.29,35.48019185]
[1732209079682,0.5,253.31,253.3,31.53229185]
[1732209080392,0.5,253.31,253.26,31.53229185]
[1732209080586,0.5,253.27,253.19,9.8736]
[1732209080790,0.5,253.27,253.23,31.53229185]
[1732209080989,0.5,253.26,253.23,31.53229185]
[1732209081197,0.5,253.24,253.19,9.8736]
[1732209081381,0.5,253.27,253.23,35.48109185]
[1732209081582,0.5,253.27,253.25,31.53229185]
[1732209082213,1.0,253.27,253.25,31.53229185]
[1732209082380,0.5,253.27,253.25,31.53229185]
[1732209082586,0.5,253.26,253.25,35.48089185]
[1732209082785,0.5,253.27,253.25,35.48089185]
[1732209083197,0.5,253.28,253.25,35.48089185]
[1732209083414,0.5,253.26,253.25,35.48089185]
[1732209083601,0.5,253.31,253.25,45.35249185]
[1732209083792,0.5,253.36,253.31,20.0]
[1732209083993,0.5,253.36,253.35,31.53229185]
[1732209084185,1.0,253.26,253.25,13.8202]
[1732209084505,1.0,253.26,253.24,31.53229185]
[1732209084900,0.5,253.29,253.24,31.53229185]
[1732209085107,0.5,253.31,253.28,31.53229185]
[1732209085402,0.5,253.33,253.3,31.53229185]
[1732209085714,0.5,253.35,253.32,31.53229185]
[1732209086412,0.5,253.39,253.34,31.53229185]
[1732209086584,1.0,253.38,253.35,31.53229185]
[1732209086785,1.0,253.36,253.35,31.53229185]
[1732209087203,0.5,253.33,253.31,31.53229185]
[1732209087610,1.0,253.34,253.31,31.53229185]
[1732209087797,0.5,253.34,253.33,31.53229185]
[1732209088003,1.0,253.36,253.33,31.53229185]
[1732209088191,0.5,253.34,253.33,31.53229185]
[1732209089518,0.5,253.42,253.33,45.34819185]
[1732209089821,0.5,253.39,253.36,31.53229185]
[1732209090110,0.5,253.39,253.33,13.8159]
[1732209090111,1.0,253.34,253.33,9.8685]
[1732209090618,1.0,253.34,253.33,13.8159]
[1732209090793,1.0,253.34,253.33,9.8685]
[1732209090996,1.0,253.34,253.33,13.8159]
[1732209091425,0.5,253.39,253.33,13.8159]
[1732209091621,0.5,253.37,253.35,31.53229185]
[1732209091802,0.5,253.34,253.33,45.34819185]
[1732209092001,0.5,253.31,253.05,30.5092]
[1732209092195,0.5,253.31,253.29,31.53229185]
[1732209092713,0.5,253.31,253.29,19.42438109]
[1732209093503,0.5,253.32,253.3,3.9478]
[1732209093803,0.5,253.32,253.31,19.42438109]
[1732209094007,0.5,253.35,253.32,20.0]
[1732209094217,0.5,253.35,253.34,20.0]
[1732209094524,1.0,253.35,253.33,19.42438109]
[1732209095710,0.5,253.35,253.34,23.9472]
[1732209096023,0.5,253.39,253.34,33.8153]
[1732209096208,1.0,253.37,253.36,19.42438109]
[1732209096622,0.5,253.35,253.34,9.8681]
[1732209096833,1.0,253.35,253.34,9.8681]
[1732209097631,0.5,253.35,253.34,33.23968109]
[1732209097808,0.5,253.35,253.34,13.8153]
[1732209098233,1.0,253.37,253.34,13.8153]
[1732209098739,0.5,253.35,253.34,13.8153]
[1732209099128,1.0,253.35,253.34,13.8153]
[1732209101244,1.0,253.29,253.28,19.42438109]
[1732209101439,0.5,253.26,253.25,19.42438109]
[1732209102034,0.5,253.26,253.25,23.37298109]
[1732209103232,0.5,253.25,253.24,9.872]
[1732209103533,1.0,253.22,253.21,19.42438109]
[1732209103735,0.5,253.22,253.21,19.42438109]
[1732209104035,1.0,253.22,253.21,19.42438109]
[1732209104928,0.5,253.22,253.21,19.42438109]
[1732209107034,1.0,253.22,253.21,19.42438109]
[1732209107335,0.5,253.22,253.21,19.42438109]
[1732209107537,0.5,253.22,253.21,23.37358109]
[1732209108114,0.5,253.28,253.22,20.0]
[1732209108336,1.0,253.28,253.27,19.42438109]
[1732209108531,0.5,253.26,253.25,19.42438109]
[1732209109035,1.0,253.24,253.23,19.42438109]
[1732209109431,1.0,253.24,253.23,23.37328109]
[1732209113150,15.776765,253.36,253.23,33.24568109]
[1732209113151,1.0,253.28,253.23,33.24568109]
[1732209113355,1.0,253.28,253.27,19.42438109]
[1732209114254,0.5,253.28,253.27,19.42438109]
[1732209114461,0.5,253.3,253.27,19.42438109]
[1732209114665,1.0,253.3,253.29,19.42438109]
[1732209114961,0.5,253.3,253.29,23.37238109]
[1732209115144,0.5,253.31,253.29,23.37238109]
[1732209115469,0.5,253.3,253.29,33.24248109]
[1732209115639,0.5,253.31,253.29,33.24248109]
[1732209115970,1.0,253.31,253.29,33.24248109]
[1732209116137,0.5,253.3,253.29,33.24248109]
[1732209117737,0.5,253.31,253.29,33.24248109]
[1732209117939,0.5,253.27,253.18,3.38309479]
[1732209118134,1.0,253.25,253.12,13.8273]
[1732209118544,0.5,253.25,253.12,13.8273]
[1732209118958,0.5,253.27,253.12,13.8273]
[1732209119157,0.5,253.27,253.26,19.42438109]
[1732209119459,1.0,253.4,253.33,20.0]
[1732209119639,0.5,253.38,253.33,20.0]
[1732209120153,0.5,253.4,253.35,20.0]
[1732209120357,0.5,253.37,253.35,20.0]
[1732209120561,0.5,253.37,253.36,39.42438109]
[1732209120957,0.5,253.39,253.36,39.42438109]
[1732209121149,0.5,253.4,253.39,19.42438109]
[1732209122865,1.0,253.47,253.39,33.23698109]
[1732209123054,1.0,253.47,253.46,19.42438109]
[1732209123879,96.16542321,253.89,253.74,40.0]
[1732209124163,0.5,254.0,253.85,43.776884]
[1732209124364,2.71300832,253.99,253.85,43.776884]
[1732209124548,35.8745337,254.08,253.85,43.776884]
[1732209124549,2.71300832,253.98,253.89,23.776884]
[1732209124754,83.70724531,254.12,253.93,37.560084]
[1732209125071,47.83271161,254.19,254.01,47.296884]
[1732209125244,5.41216645,254.21,254.2,20.0]
[1732209125564,0.5,254.24,254.22,20.0]
[1732209125865,0.5,254.19,253.76,19.86319128]
[1732209126046,0.5,254.19,253.94,220.92961998]
[1732209126373,1.0,254.19,253.96,23.776884]
[1732209126540,0.5,254.19,253.96,23.776884]
[1732209126740,3.9322,254.31,253.97,3.9374]
[1732209126741,0.5,254.17,253.97,3.9374]
[1732209126946,0.5,254.19,254.15,19.42438109]
[1732209127252,0.5,254.06,253.97,13.781]
[1732209127459,0.5,254.1,254.05,31.36415566]
[1732209127667,0.5,254.14,254.09,31.36415566]
[1732209127846,0.5,254.14,254.03,20.0]
[1732209128040,1.0,254.14,254.11,31.36415566]
[1732209128245,0.5,254.08,254.07,31.36415566]
[1732209128456,1.0,254.18,254.08,43.776884]
[1732209128665,0.5,254.18,254.13,31.36415566]
[1732209128868,0.5,254.14,254.1,31.36415566]
[1732209129067,1.0,254.11,254.1,3.9353]
[1732209129359,0.5,254.12,254.09,3.9356]
[1732209129565,0.5,254.2,254.1,55.14103966]
[1732209129744,1.0,254.26,254.19,43.776884]
[1732209129940,0.5,254.26,254.22,20.0]
[1732209130140,0.5,254.25,254.22,20.0]
[1732209130364,31.36415566,254.3,254.21,31.36415566]
[1732209130668,0.5,254.25,254.24,31.36415566]
[1732209130854,0.5,254.25,254.22,31.36415566]
[1732209131045,0.5,254.27,254.24,3.9332]
[1732209131245,0.5,254.29,254.25,23.776884]
[1732209131746,0.5,254.28,254.25,23.776884]
[1732209132064,0.5,254.27,254.24,13.7664]
[1732209132261,31.36415566,254.41,254.24,13.7664]
[1732209132262,0.5,254.39,254.26,51.36415566]
[1732209132570,0.5,254.39,254.35,31.36415566]
[1732209132753,31.36415566,254.54,254.32,43.776884]
[1732209132754,32.36415566,254.4,254.32,43.776884]
[1732209133068,0.5,254.3,254.29,47.709384]
[1732209133244,0.5,254.3,254.29,37.540584]
[1732209133445,0.5,254.3,254.29,13.7637]
[1732209133869,0.5,254.3,254.29,9.8312]
[1732209134168,0.5,254.24,254.23,27.710184]
[1732209134463,0.5,254.15,254.14,31.36415566]
[1732209134672,0.5,254.13,254.1,31.36415566]
[1732209135170,0.5,254.11,254.1,9.8385]
[1732209135462,0.5,254.07,254.05,31.36415566]
[1732209135666,0.5,254.03,254.01,3.9367]
[1732209136069,0.5,254.01,254.0,35.30105566]
[1732209136280,0.5,254.01,254.0,31.36415566]
[1732209136566,0.5,253.95,253.94,31.36415566]
[1732209136974,0.5,253.93,253.9,13.7848]
[1732209137153,0.5,253.93,253.92,31.36415566]
[1732209137347,1.0,253.91,253.9,31.36415566]
[1732209137544,1.0,253.87,253.86,31.36415566]
[1732209137751,1.0,253.85,253.84,31.36415566]
[1732209138154,0.5,253.83,253.82,41.21335566]
[1732209138750,0.5,254.04,253.82,77.1080881]
[1732209138972,1.0,254.1,254.03,31.36415566]
[1732209139171,0.5,254.06,254.05,31.36415566]
[1732209139479,0.5,254.06,253.89,31.36415566]
[1732209139480,0.5,254.04,254.03,31.36415566]
[1732209139650,0.5,254.09,254.03,31.36415566]
[1732209139969,0.5,254.11,254.07,31.36415566]
[1732209140178,0.5,254.11,253.91,23.776884]
[1732209140179,0.5,254.1,254.09,31.36415566]
[1732209140677,0.5,254.08,254.07,51.36415566]
[1732209140857,0.5,254.06,254.05,31.36415566]
[1732209141167,1.0,254.06,254.05,31.36415566]
[1732209141375,1.0,254.06,253.91,23.776884]
[1732209141376,1.0,254.06,254.03,31.36415566]
[1732209141569,0.5,254.0,253.99,31.36415566]
[1732209141865,0.5,253.93,253.92,31.36415566]
[1732209142247,1.0,253.93,253.92,31.36415566]
[1732209142653,0.5,253.93,253.92,31.36415566]
[1732209142959,0.5,253.91,253.9,31.36415566]
[1732209143153,0.5,253.89,253.88,31.36415566]
[1732209143357,0.5,253.85,253.84,31.36415566]
[1732209143565,1.0,253.85,253.84,31.36415566]
[1732209144169,0.5,253.87,253.84,31.36415566]
[1732209144462,0.5,253.81,253.77,13.7919]
[1732209144681,0.5,253.88,253.78,0.59085013]
[1732209144879,0.5,253.8,253.77,13.7919]
[1732209145053,0.5,253.8,253.78,20.0]
[1732209145249,0.5,253.87,253.77,20.0]
[1732209145456,0.5,253.87,253.79,3.9402]
[1732209145656,0.5,253.87,253.86,31.36415566]
[1732209146553,0.5,253.94,253.87,43.776884]
[1732209146760,0.5,253.94,253.93,31.36415566]
[1732209146961,1.0,253.94,253.93,31.36415566]
[1732209147365,0.5,253.92,253.91,31.36415566]
[1732209147567,1.0,253.92,253.91,31.36415566]
[1732209148876,0.5,253.92,253.91,31.36415566]
[1732209149269,1.0,253.92,253.91,31.36415566]
[1732209149466,0.5,253.92,253.91,35.30255566]
[1732209150763,0.5,254.07,253.91,35.30255566]
[1732209150764,0.5,253.94,253.92,20.0]
[1732209151078,0.5,253.97,253.93,55.14103966]
[1732209151386,0.5,253.97,253.92,20.0]
[1732209151387,0.5,253.97,253.96,31.36415566]
[1732209151675,0.5,254.15,254.02,23.776884]
[1732209151882,31.36415566,254.24,254.15,43.776884]
[1732209151883,0.5,254.24,254.15,43.776884]
[1732209152076,0.5,254.26,254.23,31.36415566]
[1732209152285,0.5,254.22,254.21,31.36415566]
[1732209152466,0.5,254.22,254.19,31.36415566]
[1732209152783,0.5,254.23,254.21,35.29775566]
[1732209152970,0.5,254.27,254.23,31.36415566]
[1732209153281,0.5,254.27,254.21,3.9336]
[1732209153282,0.5,254.26,254.25,31.36415566]
[1732209153659,1.0,254.2,254.19,31.36415566]
[1732209153865,1.0,254.2,254.15,23.9346]
[1732209153866,1.0,254.18,254.17,31.36415566]
[1732209154062,0.5,254.16,254.15,51.36415566]
[1732209154262,1.0,254.16,254.15,51.36415566]
[1732209154479,1.0,254.16,254.15,31.36415566]
[1732209154669,1.0,254.16,254.15,51.36415566]
[1732209155377,1.0,254.16,254.15,31.36415566]
[1732209155682,0.5,254.29,254.02,31.36415566]
[1732209155683,1.0,254.14,254.13,31.36415566]
[1732209156582,1.0,254.12,254.11,31.36415566]
[1732209156886,0.5,254.1,254.09,31.36415566]
[1732209157182,1.0,254.1,254.09,31.36415566]
[1732209157875,1.0,254.14,254.09,31.36415566]
[1732209158078,0.5,254.16,254.13,31.36415566]
[1732209158290,0.5,254.07,254.03,13.7778]
[1732209158666,0.5,254.06,254.04,20.0]
[1732209158895,0.5,254.05,254.04,20.0]
[1732209159105,0.5,254.05,254.03,13.7778]
[1732209159386,0.5,254.05,254.04,31.36415566]
[1732209160867,1.0,254.06,254.04,35.30045566]
[1732209161482,0.5,254.11,254.05,20.0]
[1732209161690,0.5,254.07,254.05,20.0]
[1732209161993,0.5,254.06,254.05,20.0]
[1732209162365,0.5,254.07,254.05,20.0]
[1732209162565,31.36415566,254.19,254.05,20.0]
[1732209162566,0.5,254.06,254.05,20.0]
[1732209162797,0.5,254.06,254.05,51.36415566]
[1732209162973,0.5,254.06,254.05,31.36415566]
[1732209164075,0.5,254.08,254.06,23.776884]
[1732209164387,1.0,254.09,254.07,31.36415566]
[1732209164590,0.5,254.09,254.07,31.36415566]
[1732209165170,0.5,254.12,254.07,31.36415566]
[1732209165384,0.5,254.12,254.11,31.36415566]
[1732209165980,0.5,254.12,254.07,13.7755]
[1732209165981,0.5,254.1,254.09,31.36415566]
[1732209166190,1.0,254.1,254.09,31.36415566]
[1732209166388,1.0,254.04,254.03,31.36415566]
[1732209167285,1.0,254.04,254.01,31.36415566]
[1732209167485,1.0,254.02,254.01,31.36415566]
[1732209169900,1.0,253.98,253.97,31.36415566]
[1732209170082,1.0,253.98,253.73,31.0331]
[1732209170083,1.0,253.96,253.95,31.36415566]
[1732209170283,1.0,253.96,253.76,44.25065566]
[1732209170284,0.5,253.94,253.93,31.36415566]
[1732209170489,1.0,253.94,253.93,31.36415566]
[1732209170676,0.5,253.94,253.93,31.36415566]
[1732209170997,0.5,253.98,253.93,31.36415566]
[1732209171191,0.5,253.98,253.97,31.36415566]
[1732209171697,0.5,253.95,253.94,31.36415566]
[1732209172275,1.0,253.93,253.92,31.36415566]
[1732209172574,0.5,253.93,253.92,31.36415566]
[1732209172792,1.0,253.93,253.92,31.36415566]
[1732209174377,9.8399,254.07,253.92,31.36415566]
[1732209174378,1.0,253.95,253.92,31.36415566]
[1732209174580,1.0,253.93,253.92,31.36415566]
[1732209174776,0.5,253.93,253.92,31.36415566]
[1732209176402,0.5,253.93,253.88,13.7859]
[1732209176403,0.5,253.89,253.88,31.36415566]
[1732209176604,1.0,253.89,253.88,31.36415566]
[1732209177891,0.5,253.89,253.88,31.36415566]
[1732209178205,1.0,253.89,253.88,31.36415566]
[1732209178581,1.0,253.87,253.86,31.36415566]
[1732209180181,0.5,253.89,253.86,31.36415566]
[1732209180387,31.36415566,254.02,253.88,31.36415566]
[1732209180388,0.5,253.91,253.88,31.36415566]
[1732209180600,0.5,253.89,253.87,13.7865]
[1732209180903,1.0,253.89,253.88,19.32598344]
[1732209181587,0.5,253.95,253.93,162.7]
[1732209181784,0.5,253.98,253.94,19.32598344]
[1732209182111,0.5,253.98,253.89,43.776884]
[1732209182112,0.5,253.98,253.97,19.32598344]
[1732209182401,0.5,254.01,253.97,19.32598344]
[1732209182600,0.5,253.99,253.89,44.36739189]
[1732209183107,0.5,253.97,253.89,44.36739189]
[1732209183316,0.5,253.98,253.97,20.0]